[Event "44th Chess Olympiad Women 2022"]
[Site "Chennai"]
[Date "2022.08.08"]
[Round "10.43"]
[White "Ndirangu, Joyce Nyaruai"]
[Black "Lopez L., Dairyn D."]
[Result "1/2-1/2"]
[WhiteElo "1679"]
[BlackElo "1574"]
[Annotator "NA RC"]
[PlyCount "108"]
[EventDate "2022.??.??"]
[TimeControl "60"]

1. d4 {[%emt 0:00:10]} g6 {[%emt 0:00:06]} 2. Nf3 {[%emt 0:00:08]} d6 {[%emt 0:
00:00]} 3. Bf4 {[%emt 0:00:06]} Bg7 {[%emt 0:00:06]} 4. e3 {[%emt 0:00:05]} Nf6
{[%emt 0:00:14]} 5. c4 {[%emt 0:00:04]} c5 {[%emt 0:00:39]} 6. Nc3 {[%emt 0:00:
00]} cxd4 {[%emt 0:00:07]} 7. exd4 {[%emt 0:00:08]} O-O {[%emt 0:00:06]} 8. Be2
{[%emt 0:00:07]} Nbd7 {[%emt 0:00:32]} 9. O-O {[%emt 0:00:11]} Nh5 {[%emt 0:00:
00]} 10. Bg5 {[%emt 0:01:48]} h6 {[%emt 0:02:36]} 11. Be3 {[%emt 0:00:19]} Nhf6
{[%emt 0:09:02]} 12. d5 {[%emt 0:02:47]} Nc5 {[%emt 0:00:57]} 13. h3 {[%emt 0:
00:00]} Bf5 {[%emt 0:08:55]} 14. Re1 {[%emt 0:08:22]} Rc8 {[%emt 0:02:26]} 15.
b4 {[%emt 0:04:58]} Nfe4 {[%emt 0:01:51]} 16. Nxe4 {[%emt 0:00:47]} Nxe4 {
[%emt 0:00:15]} 17. Bd4 {[%emt 0:04:19]} Nc3 {[%emt 0:03:50]} 18. Qd2 {[%emt 0:
00:00]} Nxe2+ {[%emt 0:07:14]} 19. Qxe2 {[%emt 0:02:30]} Rc7 {[%emt 0:04:03]}
20. Bxa7 {[%emt 0:03:56]} Bxa1 {[%emt 0:05:50]} 21. Rxa1 {[%emt 0:00:12]} Qc8 {
[%emt 0:00:12]} 22. c5 {[%emt 0:03:14]} dxc5 {[%emt 0:02:05]} 23. bxc5 {
[%emt 0:02:44]} Rxc5 {[%emt 0:03:05]} 24. Qxe7 {[%emt 0:12:33]} Rxd5 {[%emt 0:
00:00]} 25. Qh4 {[%emt 0:01:10]} h5 {[%emt 0:04:31]} 26. Be3 {[%emt 0:06:26]}
Rfd8 {[%emt 0:10:43]} 27. Nd4 {[%emt 0:09:41]} Qc7 {[%emt 0:04:53]} 28. Rf1 {
[%emt 0:11:08]} Bd3 {[%emt 0:09:32]} 29. Re1 {[%emt 0:10:48]} Qc3 {[%emt 0:00:
00]} 30. Nf3 {[%emt 0:00:19]} Bf5 {[%emt 0:01:55]} 31. Kh2 {[%emt 0:04:32]} Re8
{[%emt 0:02:31]} 32. Bd2 {[%emt 0:02:55]} Qc7+ {[%emt 0:01:38]} 33. Bf4 {
[%emt 0:00:02]} Qc8 {[%emt 0:02:30]} 34. Qf6 {[%emt 0:01:21]} Re6 {[%emt 0:00:
00]} 35. Rxe6 {[%emt 0:02:21]} Qxe6 {[%emt 0:00:03]} 36. Qb2 {[%emt 0:00:11]}
Qd7 {[%emt 0:01:18]} 37. Bh6 {[%emt 0:02:07]} f6 {[%emt 0:00:02]} 38. Bf4 {
[%emt 0:01:39]} Kf7 {[%emt 0:00:29]} 39. Qa3 {[%emt 0:00:31]} Be6 {[%emt 0:00:
00]} 40. h4 {[%emt 0:00:22]} Bg4 {[%emt 0:00:40]} 41. Ne1 {[%emt 0:31:41]} Rd1
{[%emt 0:31:17]} 42. Nc2 {[%emt 0:00:00]} Be6 {[%emt 0:00:00]} 43. Qb2 {
[%emt 0:00:00]} Rd5 {[%emt 0:00:00]} 44. a3 {[%emt 0:00:00]} Rb5 {[%emt 0:00:
00]} 45. Nb4 {[%emt 0:00:00]} Rf5 {[%emt 0:00:00]} 46. Bg3 {[%emt 0:00:00]} g5
{[%emt 0:00:00]} 47. hxg5 {[%emt 0:00:20]} fxg5 {[%emt 0:00:00]} 48. Qh8 {
[%emt 0:00:21]} h4 {[%emt 0:00:00]} 49. Be5 {[%emt 0:00:08]} Rxf2 {[%emt 0:00:
00]} 50. Qh5+ {[%emt 0:01:04]} Ke7 {[%emt 0:01:19]} 51. Qxg5+ {[%emt 0:00:17]}
Ke8 {[%emt 0:00:17]} 52. Qxh4 {[%emt 0:00:45]} Rf7 {[%emt 0:00:42]} 53. Qh8+ {
[%emt 0:01:03]} Rf8 {[%emt 0:00:50]} 54. Qh5+ {[%emt 0:01:02]} Rf7 {[%emt 0:00:
00]} 1/2-1/2

[Event "44th Chess Olympiad Women 2022"]
[Site "Chennai"]
[Date "2022.08.08"]
[Round "10.43"]
[White "Obondo, Cynthia Awino"]
[Black "Juarez Garcia, Daniela"]
[Result "1-0"]
[WhiteElo "1439"]
[BlackElo "1725"]
[Annotator "NA RC"]
[PlyCount "87"]
[EventDate "2022.??.??"]
[TimeControl "60"]

1. d4 {[%emt 0:00:13]} d5 {[%emt 0:00:00]} 2. Nf3 {[%emt 0:00:22]} Nf6 {
[%emt 0:00:00]} 3. e3 {[%emt 0:00:19]} e6 {[%emt 0:00:02]} 4. Bd3 {[%emt 0:00:
00]} c5 {[%emt 0:00:31]} 5. b3 {[%emt 0:00:49]} Nbd7 {[%emt 0:00:39]} 6. Nbd2 {
[%emt 0:00:46]} Be7 {[%emt 0:00:39]} 7. Bb2 {[%emt 0:00:20]} a6 {[%emt 0:01:30]
} 8. O-O {[%emt 0:01:49]} b6 {[%emt 0:00:46]} 9. Ne5 {[%emt 0:00:51]} Bb7 {
[%emt 0:00:09]} 10. f4 {[%emt 0:01:59]} Ne4 {[%emt 0:00:47]} 11. Ndf3 {[%emt 0:
00:00]} Bf6 {[%emt 0:10:59]} 12. Qe2 {[%emt 0:12:12]} h6 {[%emt 0:12:10]} 13.
a4 {[%emt 0:03:33]} Rf8 {[%emt 0:10:52]} 14. c4 {[%emt 0:00:38]} cxd4 {[%emt 0:
00:00]} 15. exd4 {[%emt 0:01:07]} Bxe5 {[%emt 0:01:45]} 16. Nxe5 {[%emt 0:00:
00]} Nxe5 {[%emt 0:03:12]} 17. dxe5 {[%emt 0:03:47]} Nc5 {[%emt 0:02:05]} 18.
Bc2 {[%emt 0:00:24]} Qh4 {[%emt 0:12:14]} 19. b4 {[%emt 0:06:21]} Ne4 {[%emt 0:
00:00]} 20. Bxe4 {[%emt 0:13:47]} dxe4 {[%emt 0:00:09]} 21. Bd4 {[%emt 0:00:47]
} Qd8 {[%emt 0:05:24]} 22. Rfd1 {[%emt 0:00:46]} Qc7 {[%emt 0:01:08]} 23. Rac1
{[%emt 0:00:38]} a5 {[%emt 0:05:28]} 24. b5 {[%emt 0:02:25]} Rd8 {[%emt 0:00:
00]} 25. Qe3 {[%emt 0:04:50]} f6 {[%emt 0:05:14]} 26. exf6 {[%emt 0:13:20]}
gxf6 {[%emt 0:00:19]} 27. Qh3 {[%emt 0:05:39]} Ke7 {[%emt 0:01:29]} 28. Qxh6 {
[%emt 0:00:58]} Rxd4 {[%emt 0:01:22]} 29. Rxd4 {[%emt 0:00:21]} Qc5 {[%emt 0:
00:00]} 30. Rcd1 {[%emt 0:02:01]} e5 {[%emt 0:00:30]} 31. fxe5 {[%emt 0:00:23]}
fxe5 {[%emt 0:00:28]} 32. Qd6+ {[%emt 0:00:46]} Qxd6 {[%emt 0:04:33]} 33. Rxd6
{[%emt 0:00:08]} Ba8 {[%emt 0:00:07]} 34. Rd7+ {[%emt 0:01:22]} Ke6 {[%emt 0:
00:00]} 35. Rd8 {[%emt 0:00:21]} Rf4 {[%emt 0:01:11]} 36. Rxa8 {[%emt 0:01:05]}
e3 {[%emt 0:00:08]} 37. Rc8 {[%emt 0:00:38]} Kf5 {[%emt 0:00:17]} 38. Rf1 {
[%emt 0:02:19]} Ke4 {[%emt 0:00:11]} 39. Rxf4+ {[%emt 0:00:49]} exf4 {[%emt 0:
00:00]} 40. Kf1 {[%emt 0:00:22]} Kd3 {[%emt 0:00:11]} 41. Ke1 {[%emt 0:30:13]}
e2 {[%emt 0:30:37]} 42. c5 {[%emt 0:00:41]} bxc5 {[%emt 0:00:18]} 43. b6 {
[%emt 0:00:12]} c4 {[%emt 0:00:05]} 44. b7 {[%emt 0:00:31]} 1-0

[Event "44th Chess Olympiad Women 2022"]
[Site "Chennai"]
[Date "2022.08.08"]
[Round "10.44"]
[White "Abdul Rasheed, Mariyam Laisa"]
[Black "O`Gorman, Alice"]
[Result "0-1"]
[WhiteElo "1145"]
[BlackElo "2043"]
[Annotator "NA RC"]
[PlyCount "34"]
[EventDate "2022.??.??"]
[TimeControl "60"]

1. e4 {[%emt 0:00:05]} e5 {[%emt 0:00:03]} 2. Nf3 {[%emt 0:00:05]} Nf6 {
[%emt 0:00:05]} 3. Nc3 {[%emt 0:00:10]} Nc6 {[%emt 0:00:03]} 4. Bb5 {[%emt 0:
00:00]} Nd4 {[%emt 0:00:13]} 5. Ba4 {[%emt 0:02:05]} Bc5 {[%emt 0:00:20]} 6.
O-O {[%emt 0:01:46]} O-O {[%emt 0:00:07]} 7. d3 {[%emt 0:00:55]} d5 {[%emt 0:
00:00]} 8. Nxe5 {[%emt 0:03:05]} Qe7 {[%emt 0:03:58]} 9. Bf4 {[%emt 0:03:39]}
Bd6 {[%emt 0:01:59]} 10. exd5 {[%emt 0:04:07]} Ng4 {[%emt 0:16:01]} 11. Nxg4 {
[%emt 0:14:31]} Bxf4 {[%emt 0:00:05]} 12. Re1 {[%emt 0:03:20]} Qh4 {[%emt 0:00:
00]} 13. h3 {[%emt 0:03:50]} h5 {[%emt 0:00:48]} 14. Nh2 {[%emt 0:06:08]} Bxh3
{[%emt 0:02:06]} 15. gxh3 {[%emt 0:06:00]} Qxh3 {[%emt 0:00:36]} 16. Nf3 {
[%emt 0:00:21]} Nxf3+ {[%emt 0:00:19]} 17. Qxf3 {[%emt 0:02:31]} Qxf3 {[%emt 0:
00:00]} 0-1

[Event "44th Chess Olympiad Women 2022"]
[Site "Chennai"]
[Date "2022.08.08"]
[Round "10.44"]
[White "Kanyamarala, Trisha"]
[Black "Nuha, Rilwan"]
[Result "1-0"]
[WhiteElo "2270"]
[BlackElo "1068"]
[Annotator "NA RC"]
[PlyCount "71"]
[EventDate "2022.??.??"]
[TimeControl "60"]

1. d4 {[%emt 0:00:06]} Nf6 {[%emt 0:00:13]} 2. c4 {[%emt 0:00:09]} e6 {[%emt 0:
00:00]} 3. Nc3 {[%emt 0:00:09]} Bb4 {[%emt 0:00:14]} 4. e3 {[%emt 0:00:10]} O-O
{[%emt 0:00:46]} 5. Bd3 {[%emt 0:00:22]} d5 {[%emt 0:00:32]} 6. a3 {[%emt 0:00:
00]} Be7 {[%emt 0:01:14]} 7. Nge2 {[%emt 0:01:49]} b6 {[%emt 0:01:09]} 8. O-O {
[%emt 0:01:48]} Bb7 {[%emt 0:00:19]} 9. cxd5 {[%emt 0:00:48]} Nxd5 {[%emt 0:00:
00]} 10. Qc2 {[%emt 0:04:06]} h6 {[%emt 0:01:44]} 11. e4 {[%emt 0:02:04]} Nxc3
{[%emt 0:03:04]} 12. bxc3 {[%emt 0:00:09]} c5 {[%emt 0:00:52]} 13. Be3 {
[%emt 0:01:51]} Nd7 {[%emt 0:02:11]} 14. Rfd1 {[%emt 0:03:28]} Rc8 {[%emt 0:00:
00]} 15. Qa2 {[%emt 0:03:45]} Nf6 {[%emt 0:02:08]} 16. f3 {[%emt 0:03:10]} Qd7
{[%emt 0:12:11]} 17. dxc5 {[%emt 0:04:22]} Bxc5 {[%emt 0:00:44]} 18. Bxc5 {
[%emt 0:00:30]} Rxc5 {[%emt 0:01:23]} 19. e5 {[%emt 0:01:59]} Nd5 {[%emt 0:00:
00]} 20. c4 {[%emt 0:00:27]} Qc7 {[%emt 0:05:38]} 21. cxd5 {[%emt 0:00:40]}
Bxd5 {[%emt 0:01:08]} 22. Qb2 {[%emt 0:00:48]} Rd8 {[%emt 0:03:17]} 23. Ng3 {
[%emt 0:04:16]} Bb7 {[%emt 0:01:29]} 24. Be4 {[%emt 0:03:25]} Bxe4 {[%emt 0:00:
00]} 25. Rxd8+ {[%emt 0:06:15]} Qxd8 {[%emt 0:00:05]} 26. Nxe4 {[%emt 0:00:11]}
Rd5 {[%emt 0:01:25]} 27. Rc1 {[%emt 0:04:22]} Qb8 {[%emt 0:05:18]} 28. Nd6 {
[%emt 0:02:44]} Rxd6 {[%emt 0:04:27]} 29. exd6 {[%emt 0:00:12]} Qxd6 {[%emt 0:
00:00]} 30. Rc8+ {[%emt 0:00:55]} Kh7 {[%emt 0:00:23]} 31. Qc2+ {[%emt 0:00:34]
} f5 {[%emt 0:03:18]} 32. Qc3 {[%emt 0:01:28]} Kg6 {[%emt 0:02:50]} 33. Rc7 {
[%emt 0:00:36]} Qf8 {[%emt 0:02:08]} 34. Qe5 {[%emt 0:00:28]} Qf6 {[%emt 0:00:
00]} 35. Qxf6+ {[%emt 0:00:07]} Kxf6 {[%emt 0:00:11]} 36. Rxa7 {[%emt 0:00:05]}
1-0

[Event "44th Chess Olympiad Women 2022"]
[Site "Chennai"]
[Date "2022.08.08"]
[Round "10.44"]
[White "Kiyan Mohamed, Usamath"]
[Black "Ni Mhuireagain, Eibhia"]
[Result "0-1"]
[WhiteElo "1100"]
[BlackElo "1638"]
[Annotator "NA RC"]
[PlyCount "121"]
[EventDate "2022.??.??"]
[TimeControl "60"]

1. e4 {[%emt 0:00:02]} c6 {[%emt 0:00:06]} 2. d4 {[%emt 0:00:04]} d5 {[%emt 0:
00:00]} 3. Nc3 {[%emt 0:00:12]} dxe4 {[%emt 0:00:08]} 4. Nxe4 {[%emt 0:00:07]}
Nd7 {[%emt 0:00:09]} 5. Nf3 {[%emt 0:00:09]} Ngf6 {[%emt 0:00:10]} 6. Bd3 {
[%emt 0:00:11]} Nxe4 {[%emt 0:00:09]} 7. Bxe4 {[%emt 0:00:08]} Nf6 {[%emt 0:00:
00]} 8. Bd3 {[%emt 0:00:16]} Bg4 {[%emt 0:00:56]} 9. c3 {[%emt 0:00:19]} e6 {
[%emt 0:00:44]} 10. h3 {[%emt 0:00:31]} Bh5 {[%emt 0:03:51]} 11. g4 {[%emt 0:
00:00]} Bg6 {[%emt 0:00:12]} 12. Ne5 {[%emt 0:00:20]} Bxd3 {[%emt 0:02:08]} 13.
Qxd3 {[%emt 0:00:08]} Bd6 {[%emt 0:01:19]} 14. Qf3 {[%emt 0:02:25]} Qc7 {
[%emt 0:16:01]} 15. Bf4 {[%emt 0:03:09]} Nd5 {[%emt 0:07:16]} 16. Bg3 {[%emt 0:
00:00]} f6 {[%emt 0:04:42]} 17. Nd3 {[%emt 0:05:07]} Bxg3 {[%emt 0:05:40]} 18.
fxg3 {[%emt 0:00:25]} O-O {[%emt 0:03:49]} 19. Nf4 {[%emt 0:10:30]} Nxf4 {
[%emt 0:01:48]} 20. gxf4 {[%emt 0:00:07]} e5 {[%emt 0:02:03]} 21. O-O {[%emt 0:
00:00]} exd4 {[%emt 0:04:21]} 22. cxd4 {[%emt 0:00:32]} Rad8 {[%emt 0:02:09]}
23. Rad1 {[%emt 0:02:22]} Qf7 {[%emt 0:05:23]} 24. b3 {[%emt 0:03:56]} Qd5 {
[%emt 0:01:26]} 25. Qd3 {[%emt 0:20:11]} Rfe8 {[%emt 0:06:38]} 26. Qc4 {
[%emt 0:06:06]} Re3 {[%emt 0:03:12]} 27. Qxd5+ {[%emt 0:02:17]} Rxd5 {[%emt 0:
00:00]} 28. Kg2 {[%emt 0:01:59]} Re4 {[%emt 0:01:04]} 29. Rf2 {[%emt 0:04:33]}
Rdxd4 {[%emt 0:02:42]} 30. Rxd4 {[%emt 0:01:47]} Rxd4 {[%emt 0:00:05]} 31. f5 {
[%emt 0:01:07]} Kf7 {[%emt 0:02:53]} 32. Rf3 {[%emt 0:06:13]} Rd2+ {[%emt 0:00:
00]} 33. Rf2 {[%emt 0:00:19]} Rxf2+ {[%emt 0:00:19]} 34. Kxf2 {[%emt 0:00:08]}
Ke7 {[%emt 0:00:19]} 35. Ke3 {[%emt 0:00:15]} Kd6 {[%emt 0:00:14]} 36. Kd4 {
[%emt 0:00:34]} b6 {[%emt 0:05:49]} 37. b4 {[%emt 0:03:32]} g6 {[%emt 0:03:32]}
38. fxg6 {[%emt 0:00:57]} hxg6 {[%emt 0:00:07]} 39. h4 {[%emt 0:01:28]} Ke6 {
[%emt 0:02:19]} 40. h5 {[%emt 0:03:18]} gxh5 {[%emt 0:00:26]} 41. gxh5 {
[%emt 0:30:20]} Kf7 {[%emt 0:33:38]} 42. Ke4 {[%emt 0:01:50]} Kg7 {[%emt 0:00:
00]} 43. Kf5 {[%emt 0:00:07]} c5 {[%emt 0:01:38]} 44. bxc5 {[%emt 0:00:13]}
bxc5 {[%emt 0:00:05]} 45. Ke4 {[%emt 0:09:18]} Kh6 {[%emt 0:00:00]} 46. Kd5 {
[%emt 0:00:00]} Kxh5 {[%emt 0:00:00]} 47. Kxc5 {[%emt 0:00:00]} Kg4 {[%emt 0:
00:00]} 48. Kd4 {[%emt 0:00:00]} f5 {[%emt 0:00:00]} 49. Ke3 {[%emt 0:00:00]}
Kg3 {[%emt 0:00:00]} 50. Ke2 {[%emt 0:00:00]} f4 {[%emt 0:00:00]} 51. Kf1 {
[%emt 0:00:00]} Kf3 {[%emt 0:00:00]} 52. a3 {[%emt 0:00:00]} a6 {[%emt 0:00:00]
} 53. a4 {[%emt 0:00:00]} a5 {[%emt 0:00:00]} 54. Ke1 {[%emt 0:00:00]} Kg2 {
[%emt 0:00:00]} 55. Ke2 {[%emt 0:00:00]} f3+ {[%emt 0:00:00]} 56. Kd3 {[%emt 0:
00:00]} f2 {[%emt 0:00:00]} 57. Kc4 {[%emt 0:00:00]} f1=Q+ {[%emt 0:00:00]} 58.
Kc5 {[%emt 0:00:00]} Qf4 {[%emt 0:00:00]} 59. Kb5 {[%emt 0:00:00]} Qb4+ {
[%emt 0:00:00]} 60. Kc6 {[%emt 0:00:00]} Qxa4+ {[%emt 0:00:00]} 61. Kb6 {
[%emt 0:00:00]} 0-1

[Event "44th Chess Olympiad Women 2022"]
[Site "Chennai"]
[Date "2022.08.08"]
[Round "10.44"]
[White "Putar, Lara"]
[Black "Aishath Alya Mohamed Shareef"]
[Result "1-0"]
[WhiteElo "1969"]
[BlackElo "1110"]
[Annotator "NA RC"]
[PlyCount "55"]
[EventDate "2022.??.??"]
[TimeControl "60"]

1. d4 {[%emt 0:00:03]} e6 {[%emt 0:00:17]} 2. c4 {[%emt 0:00:06]} d5 {[%emt 0:
00:00]} 3. Nf3 {[%emt 0:00:09]} Be7 {[%emt 0:00:29]} 4. g3 {[%emt 0:00:07]} Nf6
{[%emt 0:00:38]} 5. Bg2 {[%emt 0:00:14]} Ne4 {[%emt 0:01:17]} 6. O-O {[%emt 0:
00:00]} O-O {[%emt 0:01:46]} 7. Nc3 {[%emt 0:04:03]} f5 {[%emt 0:01:12]} 8. Qc2
{[%emt 0:02:49]} c6 {[%emt 0:02:56]} 9. b3 {[%emt 0:01:17]} Nd7 {[%emt 0:05:02]
} 10. Bb2 {[%emt 0:02:13]} Ndf6 {[%emt 0:04:37]} 11. Rad1 {[%emt 0:02:28]} Bd7
{[%emt 0:07:24]} 12. Ne5 {[%emt 0:01:32]} Be8 {[%emt 0:07:42]} 13. e3 {[%emt 0:
00:00]} Bh5 {[%emt 0:04:56]} 14. Ne2 {[%emt 0:00:51]} Rc8 {[%emt 0:03:59]} 15.
f3 {[%emt 0:06:20]} Ng5 {[%emt 0:05:18]} 16. Nf4 {[%emt 0:01:18]} Bf7 {[%emt 0:
00:00]} 17. h4 {[%emt 0:00:14]} Nxf3+ {[%emt 0:01:02]} 18. Bxf3 {[%emt 0:02:17]
} Rc7 {[%emt 0:03:27]} 19. Nxf7 {[%emt 0:01:30]} Kxf7 {[%emt 0:00:28]} 20. g4 {
[%emt 0:05:35]} fxg4 {[%emt 0:04:35]} 21. Bxg4 {[%emt 0:02:52]} Nxg4 {[%emt 0:
00:00]} 22. Qxh7 {[%emt 0:04:07]} Qd6 {[%emt 0:03:50]} 23. Qg6+ {[%emt 0:00:36]
} Kg8 {[%emt 0:00:50]} 24. Qxg4 {[%emt 0:00:34]} Rf6 {[%emt 0:01:04]} 25. Nh5 {
[%emt 0:01:09]} Rxf1+ {[%emt 0:01:48]} 26. Rxf1 {[%emt 0:00:09]} Bf8 {[%emt 0:
00:00]} 27. Nf6+ {[%emt 0:00:13]} Kh8 {[%emt 0:01:56]} 28. Qh5# {[%emt 0:00:06]
} 1-0

[Event "44th Chess Olympiad Women 2022"]
[Site "Chennai"]
[Date "2022.08.08"]
[Round "10.45"]
[White "Fawaz, Nadia"]
[Black "Galera Serra, Maria"]
[Result "0-1"]
[WhiteElo "1214"]
[BlackElo "1464"]
[Annotator "NA RC"]
[PlyCount "70"]
[EventDate "2022.??.??"]
[TimeControl "60"]

1. d4 {[%emt 0:00:17]} d5 {[%emt 0:00:11]} 2. c4 {[%emt 0:00:30]} c6 {[%emt 0:
00:00]} 3. cxd5 {[%emt 0:00:19]} Qxd5 {[%emt 0:00:49]} 4. Nc3 {[%emt 0:01:07]}
Qa5 {[%emt 0:10:17]} 5. Nf3 {[%emt 0:03:06]} Nf6 {[%emt 0:00:35]} 6. Bd2 {
[%emt 0:04:04]} Nbd7 {[%emt 0:04:38]} 7. e3 {[%emt 0:01:43]} e5 {[%emt 0:05:06]
} 8. Bc4 {[%emt 0:18:22]} exd4 {[%emt 0:10:46]} 9. Nxd4 {[%emt 0:01:01]} Bb4 {
[%emt 0:02:04]} 10. a3 {[%emt 0:04:36]} Bxc3 {[%emt 0:00:10]} 11. Bxc3 {
[%emt 0:00:08]} Qg5 {[%emt 0:00:09]} 12. O-O {[%emt 0:02:08]} O-O {[%emt 0:00:
00]} 13. Nf3 {[%emt 0:01:31]} Qh6 {[%emt 0:09:37]} 14. Qc2 {[%emt 0:15:39]} Nb6
{[%emt 0:12:31]} 15. Bd3 {[%emt 0:04:46]} Nbd5 {[%emt 0:05:22]} 16. Bd2 {
[%emt 0:06:29]} Qh5 {[%emt 0:05:01]} 17. e4 {[%emt 0:11:38]} Bg4 {[%emt 0:00:
00]} 18. Ng5 {[%emt 0:13:33]} h6 {[%emt 0:01:31]} 19. exd5 {[%emt 0:00:51]}
hxg5 {[%emt 0:00:26]} 20. dxc6 {[%emt 0:00:10]} bxc6 {[%emt 0:00:24]} 21. Qxc6
{[%emt 0:01:21]} Rad8 {[%emt 0:02:12]} 22. Qa6 {[%emt 0:01:00]} Bc8 {[%emt 0:
00:00]} 23. Qc4 {[%emt 0:00:48]} Ng4 {[%emt 0:00:14]} 24. h3 {[%emt 0:01:43]}
Ne5 {[%emt 0:00:10]} 25. Qe4 {[%emt 0:01:39]} Nxd3 {[%emt 0:00:39]} 26. Bc3 {
[%emt 0:00:21]} Nf4 {[%emt 0:07:27]} 27. Qe5 {[%emt 0:02:07]} f6 {[%emt 0:00:
00]} 28. Qc5 {[%emt 0:01:33]} Bxh3 {[%emt 0:00:31]} 29. gxh3 {[%emt 0:01:18]}
Qxh3 {[%emt 0:00:13]} 30. Qc4+ {[%emt 0:00:32]} Rf7 {[%emt 0:03:09]} 31. Qe4 {
[%emt 0:00:16]} Re7 {[%emt 0:01:26]} 32. Qc4+ {[%emt 0:01:08]} Kh8 {[%emt 0:00:
00]} 33. Qxf4 {[%emt 0:00:22]} gxf4 {[%emt 0:00:15]} 34. Rad1 {[%emt 0:00:10]}
Rxd1 {[%emt 0:00:26]} 35. Rxd1 {[%emt 0:00:05]} Qg4+ {[%emt 0:00:04]} 0-1

[Event "44th Chess Olympiad Women 2022"]
[Site "Chennai"]
[Date "2022.08.08"]
[Round "10.45"]
[White "Grishina, Alexandra"]
[Black "De la Riva Real, Ariadna"]
[Result "1/2-1/2"]
[WhiteElo "2012"]
[BlackElo "1649"]
[Annotator "NA RC"]
[PlyCount "68"]
[EventDate "2022.??.??"]
[TimeControl "60"]

1. d4 {[%emt 0:00:34]} d5 {[%emt 0:00:08]} 2. Nf3 {[%emt 0:00:57]} Nf6 {
[%emt 0:00:28]} 3. e3 {[%emt 0:00:28]} e6 {[%emt 0:02:25]} 4. Bd3 {[%emt 0:00:
00]} Be7 {[%emt 0:00:54]} 5. O-O {[%emt 0:01:05]} Nbd7 {[%emt 0:01:00]} 6. Ne5
{[%emt 0:02:10]} c5 {[%emt 0:03:20]} 7. c3 {[%emt 0:03:39]} O-O {[%emt 0:03:28]
} 8. Nd2 {[%emt 0:03:46]} Qc7 {[%emt 0:05:48]} 9. f4 {[%emt 0:05:03]} b6 {
[%emt 0:10:33]} 10. g4 {[%emt 0:18:46]} Bb7 {[%emt 0:21:02]} 11. Qf3 {[%emt 0:
00:00]} c4 {[%emt 0:13:51]} 12. Bc2 {[%emt 0:02:20]} Ne8 {[%emt 0:04:30]} 13.
g5 {[%emt 0:14:28]} f5 {[%emt 0:09:20]} 14. Qh5 {[%emt 0:18:11]} Nxe5 {[%emt 0:
00:00]} 15. fxe5 {[%emt 0:00:11]} g6 {[%emt 0:01:30]} 16. Qh4 {[%emt 0:01:39]}
b5 {[%emt 0:03:22]} 17. Nf3 {[%emt 0:08:28]} b4 {[%emt 0:01:43]} 18. Bd2 {
[%emt 0:00:23]} b3 {[%emt 0:01:52]} 19. axb3 {[%emt 0:02:24]} cxb3 {[%emt 0:00:
00]} 20. Bxb3 {[%emt 0:00:19]} Qb6 {[%emt 0:00:21]} 21. Ba4 {[%emt 0:00:26]}
Ba6 {[%emt 0:00:17]} 22. Rfe1 {[%emt 0:01:18]} Bd3 {[%emt 0:00:38]} 23. b3 {
[%emt 0:01:40]} Ng7 {[%emt 0:01:25]} 24. Qf2 {[%emt 0:02:24]} Nh5 {[%emt 0:00:
00]} 25. h4 {[%emt 0:00:47]} f4 {[%emt 0:02:08]} 26. exf4 {[%emt 0:00:43]} Nxf4
{[%emt 0:00:01]} 27. Bxf4 {[%emt 0:00:22]} Rxf4 {[%emt 0:00:02]} 28. Qe3 {
[%emt 0:01:23]} Rg4+ {[%emt 0:00:50]} 29. Kh2 {[%emt 0:00:53]} Be4 {[%emt 0:00:
00]} 30. Kh3 {[%emt 0:01:05]} Bf5 {[%emt 0:00:03]} 31. Kh2 {[%emt 0:00:08]} Be4
{[%emt 0:00:10]} 32. Kh3 {[%emt 0:00:59]} Bf5 {[%emt 0:00:02]} 33. Kh2 {
[%emt 0:00:55]} Be4 {[%emt 0:00:05]} 34. Kh3 {[%emt 0:01:01]} Bf5 {[%emt 0:00:
00]} 1/2-1/2

[Event "44th Chess Olympiad Women 2022"]
[Site "Chennai"]
[Date "2022.08.08"]
[Round "10.45"]
[White "Henderson de La Fuente, Andrea"]
[Black "Mouradian, Knarik"]
[Result "1-0"]
[WhiteElo "1962"]
[BlackElo "2121"]
[Annotator "NA RC"]
[PlyCount "61"]
[EventDate "2022.??.??"]
[TimeControl "60"]

1. e4 {[%emt 0:00:03]} c5 {[%emt 0:00:30]} 2. Nf3 {[%emt 0:00:15]} d6 {[%emt 0:
00:00]} 3. d4 {[%emt 0:00:12]} Nf6 {[%emt 0:01:41]} 4. Nc3 {[%emt 0:01:04]}
cxd4 {[%emt 0:00:16]} 5. Nxd4 {[%emt 0:00:07]} a6 {[%emt 0:00:20]} 6. g3 {
[%emt 0:00:37]} e5 {[%emt 0:04:56]} 7. Nde2 {[%emt 0:00:51]} Be7 {[%emt 0:00:
00]} 8. Bg2 {[%emt 0:00:33]} Qc7 {[%emt 0:07:01]} 9. O-O {[%emt 0:01:02]} b5 {
[%emt 0:04:26]} 10. a3 {[%emt 0:06:52]} Bb7 {[%emt 0:02:40]} 11. h3 {[%emt 0:
00:00]} Nbd7 {[%emt 0:04:24]} 12. g4 {[%emt 0:04:25]} h6 {[%emt 0:19:45]} 13.
Ng3 {[%emt 0:05:55]} g6 {[%emt 0:02:16]} 14. Kh1 {[%emt 0:14:21]} Nb6 {[%emt 0:
00:00]} 15. Nd5 {[%emt 0:06:36]} Nfxd5 {[%emt 0:03:41]} 16. exd5 {[%emt 0:00:
00]} O-O-O {[%emt 0:04:48]} 17. b3 {[%emt 0:04:03]} Bg5 {[%emt 0:03:24]} 18.
Qd3 {[%emt 0:04:33]} Qc5 {[%emt 0:05:10]} 19. c4 {[%emt 0:04:17]} bxc4 {
[%emt 0:05:00]} 20. bxc4 {[%emt 0:00:03]} Bxc1 {[%emt 0:02:30]} 21. Raxc1 {
[%emt 0:00:19]} Na4 {[%emt 0:06:28]} 22. f4 {[%emt 0:09:31]} Rhe8 {[%emt 0:00:
00]} 23. fxe5 {[%emt 0:06:00]} Rxe5 {[%emt 0:00:19]} 24. Rxf7 {[%emt 0:02:55]}
Qa5 {[%emt 0:01:44]} 25. Ne4 {[%emt 0:03:15]} Rd7 {[%emt 0:00:55]} 26. Rf8+ {
[%emt 0:05:03]} Kc7 {[%emt 0:00:21]} 27. Qd4 {[%emt 0:01:43]} Nc5 {[%emt 0:00:
00]} 28. Nxd6 {[%emt 0:02:06]} Re1+ {[%emt 0:00:26]} 29. Rxe1 {[%emt 0:00:23]}
Qxe1+ {[%emt 0:00:02]} 30. Rf1 {[%emt 0:01:20]} Nb3 {[%emt 0:00:25]} 31. Nb5+ {
[%emt 0:03:26]} 1-0